bitfinex/quotes_SOLUSD_20240717
["timestamp","ask_amount","ask_price","bid_price","bid_amount"]
[1721194393646,0.17,162.06,161.99,6.2586]
[1721194395449,0.17,162.06,161.98,15.4681]
[1721194395649,6.1709,162.05,161.98,15.4681]
[1721194395846,1.57514937,162.04,161.98,15.4681]
[1721194396145,0.17,162.03,161.96,1.23440357]
[1721194396383,0.17,162.03,161.95,6.1047]
[1721194396384,1.23514937,162.02,161.95,21.8085]
[1721194396555,0.17,162.01,161.97,1.23455521]
[1721194397550,0.17,162.01,161.95,21.8085]
[1721194398136,0.17,162.01,161.96,1.23455521]
[1721194398549,0.17,162.01,161.95,21.8085]
[1721194398749,0.17,162.01,161.96,1.23455501]
[1721194401260,1.40514937,162.04,161.96,1.23455501]
[1721194401560,0.17,162.03,161.95,21.8085]
[1721194402059,0.17,162.03,161.96,1.23455555]
[1721194402448,0.17,162.03,161.95,21.8085]
[1721194402648,0.17,162.03,161.96,1.23455442]
[1721194403251,0.17,162.03,161.95,21.8085]
[1721194403763,0.17,162.03,161.96,1.23455338]
[1721194404059,0.17,162.03,161.95,21.8085]
[1721194404375,0.17,162.03,161.95,15.7038]
[1721194404757,0.17,162.03,161.93,29.28]
[1721194406860,6.3417,162.03,161.93,29.28]
[1721194407061,1.40514937,162.02,161.93,29.28]
[1721194407250,1.40514937,162.01,161.93,29.28]
[1721194407451,1.23514937,162.01,161.93,29.28]
[1721194407660,0.17,162.0,161.93,29.28]
[1721194408167,0.17,162.0,161.91,6.059]
[1721194408352,0.34,162.0,161.91,6.059]
[1721194408672,1.23514937,161.99,161.9,45.6061]
[1721194408865,1.40514937,161.98,161.9,45.6061]
[1721194409057,0.17,161.97,161.91,1.23491344]
[1721194409464,0.34,161.97,161.9,16.3261]
[1721194410059,0.34,161.97,161.87,6.5392]
[1721194410265,6.1741,161.97,161.88,1.23498727]
[1721194410473,0.34,161.96,161.88,1.23498727]
[1721194411163,1.57514937,161.96,161.88,1.23498727]
[1721194411551,1.57514937,161.96,161.87,6.5392]
[1721194411769,7.74954937,161.96,161.87,6.5392]
[1721194412073,7.74954937,161.96,161.86,29.28]
[1721194412773,0.17,161.96,161.86,29.28]
[1721194412953,0.34,161.97,161.86,29.28]
[1721194413149,1.57514937,161.97,161.86,29.28]
[1721194413386,1.57514937,161.97,161.87,1.23510145]
[1721194414175,7.74924937,161.97,161.87,1.23510145]
[1721194414390,26.1743,161.96,161.86,29.28]
[1721194414564,1.57514937,161.95,161.86,29.28]
[1721194414758,1.57514937,161.95,161.85,15.014]
[1721194414964,1.57514937,161.95,161.86,1.23508634]
[1721194415398,1.40514937,161.95,161.86,1.23508634]
[1721194415602,0.17,161.95,161.86,1.23508634]
[1721194416303,1.40514937,161.95,161.85,44.294]
[1721194416498,1.57514937,161.95,161.85,44.294]
[1721194417775,7.71564937,161.95,161.83,12.90714969]
[1721194418103,13.89044937,161.95,161.84,29.28]
[1721194418276,7.71564937,161.95,161.84,29.28]
[1721194418481,7.71564937,161.95,161.85,1.23529093]
[1721194418683,41.2446,161.94,161.86,1.23539899]
[1721194418984,1.57514937,161.93,161.86,1.23539899]
[1721194419289,1.23514937,161.92,161.86,1.23539899]
[1721194419599,0.17,161.91,161.86,1.23539899]
[1721194420113,0.17,161.91,161.84,29.28]
[1721194420290,0.17,161.91,161.82,15.3119]
[1721194420291,1.23514937,161.9,161.82,15.3119]
[1721194420484,0.17,161.89,161.82,15.3119]
[1721194420983,0.17,161.89,161.83,1.23545563]
[1721194421715,0.17,161.89,161.8,23.29845606]
[1721194421915,0.34,161.9,161.81,29.28]
[1721194424484,0.34,161.9,161.8,15.7779]
[1721194424876,0.34,161.9,161.81,1.2355968]
[1721194425207,27.41174937,161.91,161.81,29.28]
[1721194425208,20.0,161.91,161.81,29.28]
[1721194425384,1.23514937,161.9,161.81,29.28]
[1721194425587,1.23514937,161.92,161.81,29.28]
[1721194426280,7.41104937,161.92,161.81,29.28]
[1721194426491,20.34,161.91,161.82,1.23540782]
[1721194426699,0.34,161.91,161.81,29.28]
[1721194426895,0.34,161.91,161.82,1.23539317]
[1721194427108,0.34,161.91,161.81,29.28]
[1721194427976,20.34,161.91,161.82,1.23539335]
[1721194428180,20.34,161.91,161.87,14.67]
[1721194429284,35.01,161.91,161.86,14.67]
[1721194429597,1.23514937,161.9,161.86,14.67]
[1721194429783,0.17,161.89,161.86,14.67]
[1721194431997,0.17,161.89,161.85,14.67]
[1721194432305,1.40514937,161.89,161.85,14.67]
[1721194433402,0.17,161.89,161.86,14.67]
[1721194433900,1.23514937,161.93,161.87,1.23547122]
[1721194434207,1.23514937,161.93,161.9,14.67]
[1721194434208,21.23514937,161.93,161.9,14.67]
[1721194435001,1.23514937,161.92,161.89,14.67]
[1721194435207,21.23514937,161.93,161.89,14.67]
[1721194435704,1.40514937,161.92,161.88,14.67]
[1721194436495,7.58114937,161.92,161.88,14.67]
[1721194436803,22.25114937,161.92,161.87,14.67]
[1721194437107,16.07514937,161.92,161.87,14.67]
[1721194437402,14.84,161.91,161.86,14.67]
[1721194437712,1.40514937,161.9,161.78,0.8379433]
[1721194437885,1.40514937,161.9,161.85,14.67]
[1721194438286,16.07514937,161.9,161.85,14.67]
[1721194438494,1.23514937,161.89,161.85,14.67]
[1721194439484,0.17,161.88,161.78,0.8379433]
[1721194439685,0.17,161.88,161.85,14.67]
[1721194440302,0.17,161.91,161.87,14.67]
[1721194440606,0.17,161.91,161.88,1.235345]
[1721194440810,0.17,161.91,161.89,14.67]
[1721194441010,6.42088121,161.95,161.9,1.23525386]
[1721194441314,6.42088121,161.95,161.84,14.67]
[1721194441315,16.39484937,161.98,161.85,11.23490827]
[1721194441486,16.39484937,161.98,161.95,14.67]
[1721194441685,16.39484937,161.98,161.94,14.67]
[1721194441890,15.1597,161.98,161.96,14.67]
[1721194442193,15.1597,161.98,161.94,14.67]
[1721194442194,16.39484937,161.98,161.94,14.67]
[1721194443012,15.1597,161.98,161.94,14.67]
[1721194443215,15.1597,161.98,161.96,14.67]
[1721194443596,0.17,161.97,161.94,14.67]
[1721194443791,0.34,161.97,161.88,6.5985]
[1721194444017,0.34,161.97,161.93,14.67]
[1721194444206,15.1597,161.98,161.89,29.31]
[1721194444424,16.39484937,161.98,161.89,29.31]
[1721194444910,16.39484937,161.98,161.9,1.23484346]
[1721194445310,15.1597,161.98,161.9,1.23484346]
[1721194446515,16.39484937,161.98,161.89,29.31]
[1721194446720,0.17,161.97,161.89,29.31]
[1721194447091,0.17,161.97,161.9,1.23484891]
[1721194447503,0.17,161.97,161.89,29.31]
[1721194447705,0.17,161.97,161.9,1.23487493]
[1721194448016,0.17,161.97,161.89,29.31]
[1721194448516,0.17,161.97,161.9,1.23488246]
[1721194448732,1.23514937,162.03,161.91,16.4086]
[1721194449015,22.70560609,162.04,161.95,29.31]
[1721194449221,22.70560609,162.04,161.96,1.23437752]
[1721194449222,17.51864937,162.04,161.96,1.23437752]
[1721194449815,16.2835,162.04,161.96,1.23437752]
[1721194450005,16.2835,162.04,161.98,29.31]
[1721194450204,16.2835,162.04,161.99,1.23427273]
[1721194451009,16.45644937,162.08,161.99,1.23427273]
[1721194451195,15.2213,162.08,161.99,1.23427273]
[1721194451396,15.2213,162.08,162.01,29.31]
[1721194451615,15.2213,162.08,161.98,0.17]
[1721194451814,15.2213,162.08,162.0,29.31]
[1721194452095,15.2213,162.08,162.01,1.23404422]
[1721194452303,15.2213,162.08,162.0,29.31]
[1721194452501,15.2213,162.08,162.01,1.23395374]
[1721194452696,15.2213,162.08,162.0,29.31]
[1721194453006,22.62624937,162.08,162.01,1.23398546]
[1721194453210,22.62624937,162.08,162.02,1.23411178]
[1721194453718,0.17,162.07,162.02,1.23411178]
[1721194454328,15.2213,162.08,162.02,1.23411178]
[1721194454614,15.2213,162.08,162.0,29.31]
[1721194455019,15.2213,162.08,162.01,1.23406596]
[1721194455319,15.2213,162.08,162.02,1.23408456]
[1721194455509,21.391,162.08,162.02,1.23408456]
[1721194455714,15.2213,162.08,162.02,1.23408456]
[1721194456396,15.2213,162.08,162.0,29.31]
[1721194457125,15.2213,162.08,162.0,30.54395089]
[1721194457308,15.2213,162.08,162.01,1.23395089]
[1721194457620,15.2213,162.08,162.0,29.31]
[1721194458033,16.45644937,162.08,162.01,1.23400479]
[1721194458320,7.40534937,162.07,162.01,1.23409389]
[1721194458525,0.17,162.06,162.02,1.23409389]
[1721194459119,6.1709,162.05,161.97,29.31]
[1721194459419,0.17,162.06,161.97,29.31]
[1721194459606,6.1713,162.04,161.97,29.31]
[1721194459801,1.23514937,162.06,161.94,29.31]
[1721194459802,0.17,162.03,161.94,29.31]
[1721194460302,0.17,162.03,161.95,1.23441311]
[1721194460625,0.17,162.03,161.96,1.2344435]
[1721194461122,21.23514937,162.05,161.96,1.2344435]
[1721194461307,0.17,162.04,161.96,1.2344435]
[1721194462625,27.57604937,162.05,161.96,1.2344435]
[1721194462825,7.57604937,162.05,161.96,1.2344435]
[1721194463022,6.1713,162.04,161.94,29.31]
[1721194463214,6.1713,162.04,161.95,0.17]
[1721194463419,6.1713,162.04,161.95,1.40436543]
[1721194463807,6.1713,162.04,161.96,1.23436415]
[1721194464011,7.57694937,162.03,161.96,1.23436415]
[1721194464318,12.4237,162.03,161.96,1.23436415]
[1721194464618,23.75804937,162.02,161.96,1.23436415]
[1721194464815,23.75804937,162.02,161.94,29.31]
[1721194464816,7.57764937,162.01,161.94,29.31]
[1721194465012,6.1735,161.99,161.95,1.23464319]
[1721194465219,1.40514937,162.01,161.91,1.23474158]
[1721194465419,21.40514937,162.01,161.91,1.23474158]
[1721194465837,6.1728,162.0,161.91,1.23474158]
[1721194466041,0.17,161.99,161.91,1.23474158]
[1721194466833,7.57844937,161.99,161.91,1.19127616]
[1721194467041,1.40514937,161.99,161.91,1.19127616]
[1721194467241,6.3134,161.98,161.9,29.31]
[1721194467444,0.17,161.97,161.9,29.31]
[1721194467739,0.17,161.97,161.87,267.20903114]
[1721194467927,0.17,161.97,161.88,29.31]
[1721194468129,20.17,161.97,161.88,29.31]
[1721194469027,26.344,161.97,161.88,29.31]
[1721194469428,22.69641479,161.96,161.88,29.31]
[1721194469731,7.45341479,161.95,161.85,7.52055606]
[1721194470033,0.17,161.94,161.84,57.53833589]
[1721194470737,0.17,161.94,161.84,35.71173589]
[1721194471244,0.17,161.94,161.85,1.23510815]
[1721194471460,0.17,161.94,161.86,1.23510338]
[1721194473939,0.17,161.94,161.84,35.88173589]
[1721194474143,0.17,161.94,161.85,0.17]
[1721194474742,20.0,161.95,161.85,1.40509904]
[1721194475037,15.2435,161.96,161.88,29.31]
[1721194475247,15.2435,161.96,161.91,29.31]
[1721194475438,15.2435,161.96,161.92,1.23484683]
[1721194475617,6.3134,161.98,161.93,1.23484502]
[1721194475821,16.2549,162.01,161.94,29.31]
[1721194476041,16.2549,162.01,161.95,1.23450036]
[1721194476343,16.2549,162.01,161.96,1.23449859]
[1721194476522,16.2549,162.01,161.94,29.31]
[1721194476726,16.2549,162.01,161.95,1.23448462]
[1721194476926,16.2549,162.01,161.96,1.23443522]
[1721194477120,21.6476,162.06,161.96,1.23443522]
[1721194477324,21.6476,162.06,161.97,29.31]
[1721194477523,21.6476,162.06,161.98,1.2342188]
[1721194478027,6.1713,162.04,161.97,29.31]
[1721194478851,1.27861479,162.05,161.98,1.23437388]
[1721194479035,22.92621479,162.06,161.99,1.23431696]
[1721194480052,22.92621479,162.06,161.97,29.31]
[1721194480547,0.17,162.05,161.97,29.31]
[1721194480850,0.17,162.05,161.94,0.17]
[1721194481153,1.27861479,162.04,161.96,29.31]
[1721194481357,6.1721,162.02,161.93,29.31]
[1721194481533,1.44861479,162.01,161.93,29.31]
[1721194481854,6.1723,162.02,161.94,1.23466756]
[1721194482057,0.17,162.01,161.95,1.23465305]
[1721194482351,0.17,162.01,161.96,1.23457353]
[1721194482651,0.17,162.02,161.96,1.23457353]
[1721194483442,0.17,162.02,161.97,1.19127215]
[1721194484219,0.17,162.02,161.94,1.23451568]
[1721194484426,0.34,162.03,161.93,29.31]
[1721194484634,6.3421,162.02,161.93,29.31]
[1721194484859,6.1721,162.02,161.93,29.31]
[1721194485161,0.17,162.01,161.93,29.31]
[1721194485329,0.17,162.01,161.94,1.23469715]
[1721194485533,1.61861479,162.01,161.94,1.23469715]
[1721194485739,1.44861479,162.01,161.94,1.23469715]
[1721194486350,1.44861479,162.01,161.93,29.31]
[1721194486527,0.17,162.01,161.93,29.31]
[1721194486728,1.44861479,162.01,161.93,29.31]
[1721194487649,0.17,162.01,161.93,29.31]
[1721194487953,1.44861479,162.01,161.93,29.31]
[1721194488152,0.17,162.01,161.93,29.31]
[1721194488334,0.17,162.02,161.93,29.31]
[1721194488967,6.1727,162.01,161.93,29.31]
[1721194489136,0.17,162.0,161.93,29.31]
[1721194489465,20.17,162.01,161.93,29.31]
[1721194489632,0.17,162.0,161.93,29.31]
[1721194489940,1.44861479,162.0,161.93,29.31]
[1721194490678,1.27861479,161.99,161.89,6.3183]
[1721194490878,1.27861479,161.99,161.91,29.31]
[1721194491672,1.44861479,162.0,161.91,29.31]
[1721194491870,6.1736,161.98,161.91,29.31]
[1721194492072,1.44861479,162.0,161.91,29.31]
[1721194492267,22.4766,161.99,161.89,6.3183]
[1721194492470,27.62221479,161.98,161.88,35.71871189]
[1721194492683,21.44861479,161.98,161.88,35.71871189]
[1721194492881,21.44861479,161.98,161.89,1.2349974]
[1721194493186,21.44861479,161.98,161.9,1.23500093]
[1721194493360,21.44861479,161.98,161.88,35.71871189]
[1721194494067,1.44861479,161.98,161.88,35.71871189]
[1721194494279,21.44861479,161.98,161.89,1.23500541]
[1721194494489,1.44861479,161.98,161.89,1.23500541]
[1721194494661,22.8754,161.99,161.89,1.23500541]
[1721194494981,23.37471479,162.03,161.91,29.31]
[1721194495184,29.54671479,162.03,161.92,1.23474338]
[1721194495392,20.0,162.02,161.91,29.31]
[1721194495692,1.27861479,162.01,161.91,29.31]
[1721194496567,0.17,162.0,161.91,29.31]
[1721194497375,1.27861479,162.01,161.91,29.31]
[1721194497583,0.17,162.0,161.91,29.31]
[1721194499696,1.27861479,162.01,161.94,29.31]
[1721194499869,1.27861479,162.02,161.94,29.31]
[1721194500277,7.45101479,162.01,161.94,29.31]
[1721194500470,0.17,162.0,161.91,35.5695]
[1721194500795,1.27861479,162.01,161.91,35.5695]
[1721194500979,22.2661,162.03,161.91,35.5695]
[1721194500980,1.27861479,162.02,161.91,35.5695]
[1721194501170,1.44861479,162.01,161.91,35.5695]
[1721194501789,1.44861479,162.01,161.92,0.17]
[1721194502091,0.17,162.01,161.92,0.17]
[1721194502286,1.44861479,162.01,161.92,0.17]
[1721194503184,0.17,162.01,161.92,0.17]
[1721194503683,1.44861479,162.01,161.92,0.17]
[1721194504066,1.27861479,162.02,161.92,0.17]
[1721194506705,1.27861479,162.02,161.94,29.31]
[1721194507875,6.40742642,162.06,162.01,29.31]
[1721194508079,6.1517,162.07,162.01,29.31]
[1721194508490,15.161,162.08,162.02,1.23409073]
[1721194509022,1.27861479,162.11,162.02,1.23409073]
[1721194509205,1.27861479,162.1,162.02,1.23409073]
[1721194510098,21.3127,162.12,162.02,1.23409073]
[1721194511288,1.27861479,162.11,162.02,1.23409073]
[1721194511705,22.59131479,162.12,162.04,29.31]
[1721194511909,15.161,162.12,162.05,1.23378344]
[1721194514201,6.40492222,162.14,162.05,1.23378344]
[1721194514616,0.17,162.13,162.05,1.23378344]
[1721194514902,0.17,162.14,162.05,1.23378344]
[1721194515485,0.17,162.14,162.07,29.31]
[1721194515694,0.17,162.14,162.08,1.23361546]
[1721194515893,1.27861479,162.15,162.08,1.23361546]
[1721194516203,7.44571479,162.15,162.07,29.31]
[1721194516398,0.17,162.14,162.09,1.23357558]
[1721194517301,0.17,162.14,162.01,45.2119]
[1721194517484,1.61861479,162.14,162.01,45.2119]
[1721194517685,6.1688,162.11,162.01,45.2119]
[1721194517906,1.44861479,162.1,162.01,45.2119]
[1721194518800,0.17,162.1,162.01,45.2119]
[1721194519211,0.17,162.1,162.02,1.23397903]
[1721194519506,1.44861479,162.14,162.02,1.23397903]
[1721194519706,0.17,162.13,162.04,29.31]
[1721194519893,1.27861479,162.14,162.05,1.2336826]
[1721194520077,1.27861479,162.14,162.04,29.31]
[1721194520586,1.27861479,162.14,162.05,1.23375131]
[1721194521082,0.17,162.13,162.04,29.31]
[1721194521309,6.1686,162.11,162.04,29.31]
[1721194521528,1.44861479,162.1,162.05,1.18999347]
[1721194521702,0.17,162.1,162.05,1.18999347]
[1721194521903,1.27861479,162.11,162.05,1.18999347]
[1721194522095,0.17,162.12,162.05,1.18999347]
[1721194522285,1.27861479,162.12,162.05,1.18999347]
[1721194522484,0.17,162.11,162.06,1.23381216]
[1721194522686,1.27861479,162.12,162.01,45.2119]
[1721194522999,6.1687,162.11,162.01,45.2119]
[1721194523199,7.44761479,162.1,162.01,45.2119]
[1721194523384,1.27861479,162.1,162.01,45.2119]
[1721194523585,16.2054,162.11,162.02,1.23396391]
[1721194524009,1.44861479,162.1,162.01,45.2119]
[1721194524399,1.44861479,162.1,162.02,1.23316595]
[1721194524712,0.17,162.1,162.02,1.23316595]
[1721194524908,16.2054,162.11,162.02,1.23316595]
[1721194525405,16.46831479,162.15,162.03,0.17]
[1721194525611,21.27861479,162.14,162.04,1.23371526]
[1721194525912,21.27861479,162.14,162.05,1.23374462]
[1721194526589,6.338,162.13,162.01,45.2119]
[1721194526906,1.27861479,162.12,162.02,1.23386179]
[1721194527113,0.17,162.11,162.01,45.2119]
[1721194527803,1.27861479,162.1,162.01,45.2119]
[1721194528004,0.17,162.09,162.01,45.2119]
[1721194528198,1.44861479,162.09,162.01,45.2119]
[1721194528401,1.27861479,162.09,162.02,1.23402323]
[1721194528596,6.3387,162.11,162.02,1.23402323]
[1721194528597,0.17,162.11,162.02,1.23402323]
[1721194528918,1.61861479,162.12,162.02,1.23402323]
[1721194529523,21.61861479,162.12,162.02,1.23402323]
[1721194530335,27.78691479,162.12,162.02,1.23402323]
[1721194530611,1.27861479,162.11,162.02,1.23402323]
[1721194530818,1.44861479,162.1,162.02,1.23402323]
[1721194530989,20.0,162.12,162.02,1.23402323]
[1721194531196,1.27861479,162.13,162.02,1.23402323]
[1721194531531,21.27861479,162.14,162.03,0.17]
[1721194531820,27.44611479,162.14,162.04,1.23375035]
[1721194532204,21.27861479,162.14,162.05,1.23376504]
[1721194532710,0.17,162.13,162.05,1.23376504]
[1721194534004,21.27861479,162.14,162.06,1.23369858]
[1721194534203,20.0,162.14,162.06,1.23369858]
[1721194534401,21.27861479,162.14,162.06,1.23369858]
[1721194534613,0.17,162.13,162.01,45.2119]
[1721194534823,7.61651479,162.13,162.02,1.23379913]
[1721194535128,1.44861479,162.13,162.02,1.23379913]
[1721194535419,0.17,162.13,162.02,1.23379913]
[1721194536001,20.0,162.14,162.02,1.23379913]
[1721194536328,16.63831479,162.15,162.03,0.17]
[1721194536527,0.17,162.14,162.04,1.23360705]
[1721194536735,1.44861479,162.14,162.05,1.40360705]
[1721194537022,7.61611479,162.14,162.03,0.17]
[1721194537217,6.1679,162.13,162.03,0.17]
[1721194537520,6.1679,162.13,162.02,0.17]
[1721194537919,1.44861479,162.14,162.02,0.17]
[1721194538135,0.17,162.14,162.06,29.31]
[1721194538435,0.17,162.14,162.07,1.23360688]
[1721194538612,1.44861479,162.14,162.06,29.31]
[1721194539102,6.1679,162.13,162.02,0.17]
[1721194539298,7.61611479,162.14,162.02,0.17]
[1721194539523,7.61611479,162.14,162.04,29.31]
[1721194539911,7.61611479,162.14,162.05,1.23368868]
[1721194540519,7.61611479,162.14,162.04,29.31]
[1721194540922,1.44861479,162.14,162.01,51.5697]
[1721194541111,6.1689,162.11,162.01,51.5697]
[1721194541438,1.44861479,162.1,162.01,51.5697]
[1721194541737,1.27861479,162.13,162.02,1.2338865]
[1721194542030,0.17,162.12,162.02,1.2338865]
[1721194542613,20.0,162.14,162.03,11.23374955]
[1721194542814,20.0,162.14,162.04,29.48]
[1721194543220,21.27861479,162.14,162.04,29.48]
[1721194544037,0.17,162.13,162.04,29.48]
[1721194544217,1.44861479,162.13,162.04,29.31]
[1721194544626,1.44861479,162.13,162.01,51.5697]
[1721194544939,7.61661479,162.13,162.02,0.17]
[1721194545729,1.44861479,162.13,162.02,0.17]
[1721194548936,0.17,162.13,162.02,0.17]
[1721194549117,0.17,162.13,162.04,29.31]
[1721194549317,0.17,162.13,162.05,1.23365891]
[1721194549520,0.17,162.13,162.04,29.31]
[1721194551120,20.0,162.14,162.05,1.23368675]
[1721194551320,15.1897,162.15,162.05,1.23368675]
[1721194551524,22.63541479,162.15,162.04,29.48]
[1721194551723,22.63541479,162.15,162.05,0.17]
[1721194552256,16.46831479,162.15,162.05,0.17]
[1721194553129,7.61621479,162.14,162.04,29.31]
[1721194554231,14.63,162.13,162.08,14.63]
[1721194554429,1.44861479,162.12,162.08,14.63]
[1721194554843,16.07861479,162.12,162.07,14.63]
[1721194555931,14.8,162.12,162.07,14.63]
[1721194556257,1.27861479,162.11,162.01,28.65945469]
[1721194556550,16.07861479,162.1,162.05,14.63]
[1721194556757,15.90861479,162.1,162.05,14.63]
[1721194556949,1.27861479,162.1,162.05,14.63]
[1721194557158,1.27861479,162.1,162.06,1.23397972]
[1721194557833,1.27861479,162.1,162.01,6.39975469]
[1721194558166,1.27861479,162.1,161.97,16.3751]
[1721194558167,14.63,162.06,161.97,16.3751]
[1721194558343,16.07861479,162.05,162.0,14.63]
[1721194558536,14.8,162.05,162.0,14.63]
[1721194558952,1.27861479,162.04,162.0,14.63]
[1721194559465,1.27861479,162.04,161.97,16.3751]
[1721194559676,15.90861479,162.04,161.99,14.63]
[1721194559842,14.63,162.04,161.99,14.63]
[1721194560241,1.44861479,162.05,161.94,29.3]
[1721194560669,6.2891,162.04,161.94,29.3]
[1721194560967,17.86381479,162.03,161.94,29.3]
[1721194562048,17.86381479,162.03,161.95,1.19153019]
[1721194562246,16.5852,162.03,161.96,1.23457674]
[1721194562459,15.6537,162.07,161.96,1.23457674]
[1721194562763,1.44861479,162.06,161.97,29.3]
[1721194562937,1.44861479,162.06,161.98,1.23436901]
[1721194563137,16.93231479,162.07,161.99,1.23437061]
[1721194563337,15.6537,162.07,161.99,1.23437061]
[1721194563544,16.93231479,162.07,161.99,1.23437061]
[1721194564369,23.10241479,162.07,161.94,29.3]
[1721194564536,6.1705,162.06,161.95,0.17]
[1721194564732,1.27861479,162.05,161.95,0.17]
[1721194565040,1.27861479,162.06,161.95,0.17]
[1721194565235,0.17,162.05,161.95,0.17]
[1721194565895,0.17,162.05,161.95,1.40435875]
[1721194566199,0.17,162.05,161.95,0.17]
[1721194566705,0.17,162.05,161.95,1.40435041]
[1721194566868,15.6537,162.07,161.97,29.3]
[1721194567068,15.6537,162.07,161.98,1.4041456]
[1721194567268,15.6537,162.07,161.99,1.2341456]
[1721194568669,16.93231479,162.07,161.98,0.17]
[1721194568873,0.17,162.06,161.97,29.3]
[1721194569115,1.44861479,162.06,161.98,1.2343611]
[1721194569300,1.44861479,162.06,161.97,29.3]
[1721194569471,1.44861479,162.06,161.98,1.23429265]
[1721194569671,0.17,162.06,161.99,1.23423921]
[1721194570666,6.39929757,162.1,162.0,10.0]
[1721194570997,15.6281,162.12,162.03,29.3]
[1721194571171,15.6281,162.12,162.04,1.36052776]
[1721194571375,15.6281,162.12,162.05,1.23366515]
[1721194571569,15.6281,162.12,162.04,0.17]
[1721194571994,15.6281,162.12,162.04,1.19094676]
[1721194572201,15.6281,162.12,162.03,29.3]
[1721194572393,21.7967,162.12,162.0,29.3]
[1721194572573,21.7967,162.12,162.01,0.17]
[1721194572893,7.44721479,162.11,162.01,1.23399923]
[1721194573093,1.27861479,162.1,162.02,1.19097175]
[1721194573296,0.17,162.09,162.0,29.3]
[1721194573601,1.27861479,162.08,162.01,1.23409682]
[1721194573893,0.17,162.09,162.02,1.23409378]
[1721194574071,1.27861479,162.1,162.02,1.23409378]
[1721194574277,1.44861479,162.11,162.02,1.23409378]
[1721194575089,1.27861479,162.1,162.01,0.17]
[1721194575294,1.44861479,162.11,162.01,1.40395193]
[1721194575609,15.6281,162.12,162.03,29.3]
[1721194575776,16.90671479,162.12,162.04,1.23382016]
[1721194575976,16.90671479,162.12,162.05,1.2338261]
[1721194576768,16.90671479,162.12,162.03,29.3]
[1721194577379,16.90671479,162.12,162.04,1.23383687]
[1721194577700,16.90671479,162.12,162.05,1.23383687]
[1721194577998,16.90671479,162.12,162.03,29.3]
[1721194578499,16.90671479,162.12,162.04,1.23383831]
[1721194578795,16.90671479,162.12,162.05,1.23383878]
[1721194578999,16.90671479,162.12,162.06,1.23383927]
[1721194579901,15.6281,162.12,162.06,1.23383927]
[1721194580082,15.6281,162.12,162.07,1.23365001]
[1721194580286,15.6281,162.12,162.08,1.23373366]
[1721194580490,15.6281,162.12,162.04,1.23370912]
[1721194580693,15.6281,162.12,162.05,1.23370658]
[1721194581423,15.6281,162.12,162.03,29.47]
[1721194581583,16.90671479,162.12,162.04,0.17]
[1721194581909,15.6281,162.12,162.04,1.23317911]
[1721194582117,15.6281,162.12,162.05,1.2337591]
[1721194583308,15.6281,162.12,162.03,29.47]
[1721194583732,1.27861479,162.11,162.04,1.23378921]
[1721194584012,1.44861479,162.1,162.0,29.3]
[1721194584596,1.44861479,162.1,162.01,1.23395631]
[1721194584998,0.17,162.1,162.01,1.23395631]
[1721194585197,1.44861479,162.1,162.0,29.3]
[1721194585600,1.44861479,162.1,162.01,0.17]
[1721194585998,1.44861479,162.1,162.01,1.23395776]
[1721194586292,1.44861479,162.1,162.02,1.23410371]
[1721194586612,7.61771479,162.1,162.0,29.3]
[1721194586794,1.44861479,162.1,162.0,29.3]
[1721194587198,1.44861479,162.1,162.01,1.23410199]
[1721194587512,0.17,162.1,162.0,29.47]
[1721194587711,0.17,162.1,162.01,1.40397133]
[1721194587888,1.27861479,162.11,162.03,29.3]